{"text_format":"3","workbook":"xlsx","n_sheets":7,"sheets":["Pirmadienis","Antradienis","Trečiadienis","Ketvirtadienis","Penktadienis","Šeštadienis","Sekmadienis"],"not_rendered":{"defined_names":24},"read":"whole","date_system":"1900"}

{"sheet":"Pirmadienis","index":0,"n_rows":10,"n_cols":13,"rows_kept":10,"merged":[[1,1,2,1],[1,2,1,10],[1,11,1,12],[2,2,2,10],[2,11,2,12]]}
[null,"PAMAINŲ TVARKARAŠTIS"]
[null,"PIRMADIENIS","Savaitė: ",{"$nulls":8},"DATA"]
[null,null,"Skyriaus pavadinimas: ",{"$nulls":8},"SKYRIUS"]
[null,"Darbuotojo vardas","7:00","8:00","9:00","10:00","11:00","12:00","13:00","14:00","15:00","Serga?","SUMA"]
[null,"Kotryna F","vadovas","vadovas","vadovas","vadovas","vadovas","vadovas","vadovas","vadovas","vadovas",null,{"$f":"IFERROR(COUNTIF(Pirmadienis[[#This Row],[7:00]:[15:00]],\"*\"),\"\")","v":9}]
[null,"Tomas Y",null,"kasininkas","kasininkas","kasininkas","kasininkas",{"$nulls":5},{"$f":"IFERROR(COUNTIF(Pirmadienis[[#This Row],[7:00]:[15:00]],\"*\"),\"\")","v":4}]
[null,"Jurgis S",null,"priimamasis","priimamasis","priimamasis","priimamasis ","priimamasis","priimamasis","priimamasis",null,null,{"$f":"IFERROR(COUNTIF(Pirmadienis[[#This Row],[7:00]:[15:00]],\"*\"),\"\")","v":7}]
[null,"Jonas M",null,"priimamasis","priimamasis","priimamasis","priimamasis ","priimamasis","priimamasis","priimamasis",null,null,{"$f":"IFERROR(COUNTIF(Pirmadienis[[#This Row],[7:00]:[15:00]],\"*\"),\"\")","v":7}]
[null,"Tadas P",{"$nulls":10},{"$f":"IFERROR(COUNTIF(Pirmadienis[[#This Row],[7:00]:[15:00]],\"*\"),\"\")","v":0}]
[null,"Teresė A",{"$nulls":5},"kasininkas","kasininkas","kasininkas","kasininkas",null,{"$f":"IFERROR(COUNTIF(Pirmadienis[[#This Row],[7:00]:[15:00]],\"*\"),\"\")","v":4}]

{"sheet":"Antradienis","index":1,"n_rows":10,"n_cols":13,"rows_kept":10,"merged":[[1,1,2,1],[1,2,1,10],[1,11,1,12],[2,2,2,10],[2,11,2,12]]}
[null,{"$f":"SHIFT_SCHEDULE_Title","v":"PAMAINŲ TVARKARAŠTIS"}]
[null,"ANTRADIENIS","Savaitė: ",{"$nulls":8},{"$f":"DATA","v":"DATA"}]
[null,null,"Skyriaus pavadinimas: ",{"$nulls":8},{"$f":"SKYRIUS","v":"SKYRIUS"}]
[null,"Darbuotojo vardas","7:00","8:00","9:00","10:00","11:00","12:00","13:00","14:00","15:00","Serga?","SUMA"]
[null,"Kotryna F","vadovas","vadovas","vadovas","vadovas","vadovas","vadovas","vadovas","vadovas","vadovas",null,{"$f":"IFERROR(COUNTIF(Antradienis[[#This Row],[7:00]:[15:00]],\"*\"),\"\")","v":9}]
[null,"Tomas Y",null,"kasininkas","kasininkas","kasininkas","kasininkas",{"$nulls":5},{"$f":"IFERROR(COUNTIF(Antradienis[[#This Row],[7:00]:[15:00]],\"*\"),\"\")","v":4}]
[null,"Jurgis S",null,"priimamasis","priimamasis","priimamasis","priimamasis ","priimamasis","priimamasis","priimamasis",null,null,{"$f":"IFERROR(COUNTIF(Antradienis[[#This Row],[7:00]:[15:00]],\"*\"),\"\")","v":7}]
[null,"Jonas M",null,"priimamasis","priimamasis","priimamasis","priimamasis ","priimamasis","priimamasis","priimamasis",null,null,{"$f":"IFERROR(COUNTIF(Antradienis[[#This Row],[7:00]:[15:00]],\"*\"),\"\")","v":7}]
[null,"Tadas P",{"$nulls":9},"Liga",{"$f":"IFERROR(COUNTIF(Antradienis[[#This Row],[7:00]:[15:00]],\"*\"),\"\")","v":0}]
[null,"Teresė A",{"$nulls":5},"kasininkas","kasininkas","kasininkas","kasininkas",null,{"$f":"IFERROR(COUNTIF(Antradienis[[#This Row],[7:00]:[15:00]],\"*\"),\"\")","v":4}]

{"sheet":"Trečiadienis","index":2,"n_rows":10,"n_cols":13,"rows_kept":10,"merged":[[1,1,2,1],[1,2,1,10],[1,11,1,12],[2,2,2,10],[2,11,2,12]]}
[null,{"$f":"SHIFT_SCHEDULE_Title","v":"PAMAINŲ TVARKARAŠTIS"}]
[null,"TREČIADIENIS","Savaitė: ",{"$nulls":8},{"$f":"DATA","v":"DATA"}]
[null,null,"Skyriaus pavadinimas: ",{"$nulls":8},{"$f":"SKYRIUS","v":"SKYRIUS"}]
[null,"Darbuotojo vardas","7:00","8:00","9:00","10:00","11:00","12:00","13:00","14:00","15:00","Serga?","SUMA"]
[null,"Kotryna F","vadovas","vadovas","vadovas","vadovas","vadovas","vadovas","vadovas","vadovas","vadovas",null,{"$f":"IFERROR(COUNTIF(Trečiadienis[[#This Row],[7:00]:[15:00]],\"*\"),\"\")","v":9}]
[null,"Tomas Y",null,"kasininkas","kasininkas","kasininkas","kasininkas",{"$nulls":5},{"$f":"IFERROR(COUNTIF(Trečiadienis[[#This Row],[7:00]:[15:00]],\"*\"),\"\")","v":4}]
[null,"Jurgis S",null,"priimamasis","priimamasis","priimamasis","priimamasis ","priimamasis","priimamasis","priimamasis",null,null,{"$f":"IFERROR(COUNTIF(Trečiadienis[[#This Row],[7:00]:[15:00]],\"*\"),\"\")","v":7}]
[null,"Jonas M",null,"priimamasis","priimamasis","priimamasis","priimamasis ","priimamasis","priimamasis","priimamasis",null,null,{"$f":"IFERROR(COUNTIF(Trečiadienis[[#This Row],[7:00]:[15:00]],\"*\"),\"\")","v":7}]
[null,"Tadas P",{"$nulls":9},"Liga",{"$f":"IFERROR(COUNTIF(Trečiadienis[[#This Row],[7:00]:[15:00]],\"*\"),\"\")","v":0}]
[null,"Teresė A",{"$nulls":5},"kasininkas","kasininkas","kasininkas","kasininkas",null,{"$f":"IFERROR(COUNTIF(Trečiadienis[[#This Row],[7:00]:[15:00]],\"*\"),\"\")","v":4}]

{"sheet":"Ketvirtadienis","index":3,"n_rows":10,"n_cols":13,"rows_kept":10,"merged":[[1,1,2,1],[1,2,1,10],[1,11,1,12],[2,2,2,10],[2,11,2,12]]}
[null,{"$f":"SHIFT_SCHEDULE_Title","v":"PAMAINŲ TVARKARAŠTIS"}]
[null,"KETVIRTADIENIS","Savaitė: ",{"$nulls":8},{"$f":"DATA","v":"DATA"}]
[null,null,"Skyriaus pavadinimas: ",{"$nulls":8},{"$f":"SKYRIUS","v":"SKYRIUS"}]
[null,"Darbuotojo vardas","7:00","8:00","9:00","10:00","11:00","12:00","13:00","14:00","15:00","Serga?","SUMA"]
[null,"Kotryna F","vadovas","vadovas","vadovas","vadovas","vadovas","vadovas","vadovas","vadovas","vadovas",null,{"$f":"IFERROR(COUNTIF(Ketvirtadienis[[#This Row],[7:00]:[15:00]],\"*\"),\"\")","v":9}]
[null,"Tomas Y",null,"kasininkas","kasininkas","kasininkas","kasininkas",{"$nulls":5},{"$f":"IFERROR(COUNTIF(Ketvirtadienis[[#This Row],[7:00]:[15:00]],\"*\"),\"\")","v":4}]
[null,"Jurgis S",null,"priimamasis","priimamasis","priimamasis","priimamasis ","priimamasis","priimamasis","priimamasis",null,null,{"$f":"IFERROR(COUNTIF(Ketvirtadienis[[#This Row],[7:00]:[15:00]],\"*\"),\"\")","v":7}]
[null,"Jonas M",null,"priimamasis","priimamasis","priimamasis","priimamasis ","priimamasis","priimamasis","priimamasis",null,null,{"$f":"IFERROR(COUNTIF(Ketvirtadienis[[#This Row],[7:00]:[15:00]],\"*\"),\"\")","v":7}]
[null,"Tadas P",{"$nulls":9},"Liga",{"$f":"IFERROR(COUNTIF(Ketvirtadienis[[#This Row],[7:00]:[15:00]],\"*\"),\"\")","v":0}]
[null,"Teresė A",{"$nulls":5},"kasininkas","kasininkas","kasininkas","kasininkas",null,{"$f":"IFERROR(COUNTIF(Ketvirtadienis[[#This Row],[7:00]:[15:00]],\"*\"),\"\")","v":4}]

{"sheet":"Penktadienis","index":4,"n_rows":10,"n_cols":13,"rows_kept":10,"merged":[[1,1,2,1],[1,2,1,10],[1,11,1,12],[2,2,2,10],[2,11,2,12]]}
[null,{"$f":"SHIFT_SCHEDULE_Title","v":"PAMAINŲ TVARKARAŠTIS"}]
[null,"PENKTADIENIS","Savaitė: ",{"$nulls":8},{"$f":"DATA","v":"DATA"}]
[null,null,"Skyriaus pavadinimas: ",{"$nulls":8},{"$f":"SKYRIUS","v":"SKYRIUS"}]
[null,"Darbuotojo vardas","7:00","8:00","9:00","10:00","11:00","12:00","13:00","14:00","15:00","Serga?","SUMA"]
[null,"Kotryna F","vadovas","vadovas","vadovas","vadovas","vadovas","vadovas","vadovas","vadovas","vadovas",null,{"$f":"IFERROR(COUNTIF(Penktadienis[[#This Row],[7:00]:[15:00]],\"*\"),\"\")","v":9}]
[null,"Tomas Y",null,"kasininkas","kasininkas","kasininkas","kasininkas",{"$nulls":5},{"$f":"IFERROR(COUNTIF(Penktadienis[[#This Row],[7:00]:[15:00]],\"*\"),\"\")","v":4}]
[null,"Jurgis S",null,"priimamasis","priimamasis","priimamasis","priimamasis ","priimamasis","priimamasis","priimamasis",null,null,{"$f":"IFERROR(COUNTIF(Penktadienis[[#This Row],[7:00]:[15:00]],\"*\"),\"\")","v":7}]
[null,"Jonas M",null,"priimamasis","priimamasis","priimamasis","priimamasis ","priimamasis","priimamasis","priimamasis",null,null,{"$f":"IFERROR(COUNTIF(Penktadienis[[#This Row],[7:00]:[15:00]],\"*\"),\"\")","v":7}]
[null,"Tadas P",{"$nulls":9},"Liga",{"$f":"IFERROR(COUNTIF(Penktadienis[[#This Row],[7:00]:[15:00]],\"*\"),\"\")","v":0}]
[null,"Teresė A",{"$nulls":5},"kasininkas","kasininkas","kasininkas","kasininkas",null,{"$f":"IFERROR(COUNTIF(Penktadienis[[#This Row],[7:00]:[15:00]],\"*\"),\"\")","v":4}]

{"sheet":"Šeštadienis","index":5,"n_rows":10,"n_cols":13,"rows_kept":10,"merged":[[1,1,2,1],[1,2,1,10],[1,11,1,12],[2,2,2,10],[2,11,2,12]]}
[null,{"$f":"SHIFT_SCHEDULE_Title","v":"PAMAINŲ TVARKARAŠTIS"}]
[null,"ŠEŠTADIENIS","Savaitė: ",{"$nulls":8},{"$f":"DATA","v":"DATA"}]
[null,null,"Skyriaus pavadinimas: ",{"$nulls":8},{"$f":"SKYRIUS","v":"SKYRIUS"}]
[null,"Darbuotojo vardas","7:00","8:00","9:00","10:00","11:00","12:00","13:00","14:00","15:00","Serga?","SUMA"]
[null,"Kotryna F","vadovas","vadovas","vadovas","vadovas","vadovas","vadovas","vadovas","vadovas","vadovas",null,{"$f":"IFERROR(COUNTIF(Šeštadienis[[#This Row],[7:00]:[15:00]],\"*\"),\"\")","v":9}]
[null,"Tomas Y",null,"kasininkas","kasininkas","kasininkas","kasininkas",{"$nulls":5},{"$f":"IFERROR(COUNTIF(Šeštadienis[[#This Row],[7:00]:[15:00]],\"*\"),\"\")","v":4}]
[null,"Jurgis S",null,"priimamasis","priimamasis","priimamasis","priimamasis ","priimamasis","priimamasis","priimamasis",null,null,{"$f":"IFERROR(COUNTIF(Šeštadienis[[#This Row],[7:00]:[15:00]],\"*\"),\"\")","v":7}]
[null,"Jonas M",null,"priimamasis","priimamasis","priimamasis","priimamasis ","priimamasis","priimamasis","priimamasis",null,null,{"$f":"IFERROR(COUNTIF(Šeštadienis[[#This Row],[7:00]:[15:00]],\"*\"),\"\")","v":7}]
[null,"Tadas P",{"$nulls":9},"Liga",{"$f":"IFERROR(COUNTIF(Šeštadienis[[#This Row],[7:00]:[15:00]],\"*\"),\"\")","v":0}]
[null,"Teresė A",{"$nulls":5},"kasininkas","kasininkas","kasininkas","kasininkas",null,{"$f":"IFERROR(COUNTIF(Šeštadienis[[#This Row],[7:00]:[15:00]],\"*\"),\"\")","v":4}]

{"sheet":"Sekmadienis","index":6,"n_rows":10,"n_cols":13,"rows_kept":10,"merged":[[1,1,2,1],[1,2,1,10],[1,11,1,12],[2,2,2,10],[2,11,2,12]]}
[null,{"$f":"SHIFT_SCHEDULE_Title","v":"PAMAINŲ TVARKARAŠTIS"}]
[null,"SEKMADIENIS","Savaitė: ",{"$nulls":8},{"$f":"DATA","v":"DATA"}]
[null,null,"Skyriaus pavadinimas: ",{"$nulls":8},{"$f":"SKYRIUS","v":"SKYRIUS"}]
[null,"Darbuotojo vardas","7:00","8:00","9:00","10:00","11:00","12:00","13:00","14:00","15:00","Serga?","SUMA"]
[null,"Kotryna F","vadovas","vadovas","vadovas","vadovas","vadovas","vadovas","vadovas","vadovas","vadovas",null,{"$f":"IFERROR(COUNTIF(Sekmadienis[[#This Row],[7:00]:[15:00]],\"*\"),\"\")","v":9}]
[null,"Tomas Y",null,"kasininkas","kasininkas","kasininkas","kasininkas",{"$nulls":5},{"$f":"IFERROR(COUNTIF(Sekmadienis[[#This Row],[7:00]:[15:00]],\"*\"),\"\")","v":4}]
[null,"Jurgis S",null,"priimamasis","priimamasis","priimamasis","priimamasis ","priimamasis","priimamasis","priimamasis",null,null,{"$f":"IFERROR(COUNTIF(Sekmadienis[[#This Row],[7:00]:[15:00]],\"*\"),\"\")","v":7}]
[null,"Jonas M",null,"priimamasis","priimamasis","priimamasis","priimamasis ","priimamasis","priimamasis","priimamasis",null,null,{"$f":"IFERROR(COUNTIF(Sekmadienis[[#This Row],[7:00]:[15:00]],\"*\"),\"\")","v":7}]
[null,"Tadas P",{"$nulls":9},"Liga",{"$f":"IFERROR(COUNTIF(Sekmadienis[[#This Row],[7:00]:[15:00]],\"*\"),\"\")","v":0}]
[null,"Teresė A",{"$nulls":5},"kasininkas","kasininkas","kasininkas","kasininkas",null,{"$f":"IFERROR(COUNTIF(Sekmadienis[[#This Row],[7:00]:[15:00]],\"*\"),\"\")","v":4}]